bitfinex/quotes_ETHUSD_20250813
["timestamp","ask_amount","ask_price","bid_price","bid_amount"]
[1755114341183,0.456,4713.1,4712.3,11.639]
[1755114341685,0.456,4713.1,4712.3,11.638]
[1755114342196,0.456,4713.1,4712.3,11.636]
[1755114343579,0.755,4713.2,4712.3,8.087]
[1755114343784,0.753,4712.8,4712.3,11.632]
[1755114344009,0.476,4712.4,4712.3,11.632]
[1755114344212,0.02,4712.4,4712.3,11.632]
[1755114345985,0.02,4712.4,4712.3,5.086]
[1755114345986,1.229,4712.4,4712.3,5.086]
[1755114346313,0.55,4712.3,4711.5,0.636123]
[1755114346486,0.55,4712.3,4710.8,2.647]
[1755114346487,0.55,4712.1,4711.6,3.537]
[1755114346682,1.209,4712.0,4711.7,3.541]
[1755114346887,1.759,4711.9,4711.8,3.541]
[1755114347189,0.55,4711.8,4709.9,0.10634314]
[1755114347487,0.02,4712.4,4710.6,0.636255]
[1755114347488,0.55,4711.6,4710.6,0.636255]
[1755114347690,1.209,4711.5,4710.7,3.539]
[1755114347892,0.456,4711.4,4710.6,0.636255]
[1755114348125,1.209,4711.4,4710.8,3.537]
[1755114348326,0.02,4712.4,4710.8,3.9543255]
[1755114348484,0.476,4712.4,4710.9,3.0]
[1755114349183,0.753,4712.3,4710.9,3.0]
[1755114349649,0.456,4712.2,4710.9,3.0]
[1755114349982,0.1064,4711.6,4710.9,3.1064]
[1755114350183,0.1064,4711.6,4711.0,0.97435697]
[1755114350503,0.1064,4711.6,4711.2,3.0]
[1755114351007,0.5624,4711.6,4711.2,3.0]
[1755114351220,14.5,4711.5,4711.2,3.0]
[1755114351379,15.253,4711.5,4711.2,3.0]
[1755114351577,14.5,4711.5,4711.3,5.087]
[1755114351799,0.753,4711.4,4711.3,5.087]
[1755114352017,1.209,4711.4,4711.3,8.618]
[1755114352210,1.3154,4711.4,4711.3,8.618]
[1755114352614,15.8154,4711.4,4711.3,8.618]
[1755114357137,15.8154,4711.4,4711.3,5.087]
[1755114357411,17.39694,4711.4,4711.3,8.604]
[1755114357919,17.94694,4711.4,4711.3,8.604]
[1755114358096,17.94694,4711.4,4711.3,5.087]
[1755114358284,17.94694,4711.4,4711.3,8.602]
[1755114359913,17.94694,4711.4,4711.3,8.598]
[1755114362135,0.55,4711.3,4710.4,5.087]
[1755114362320,0.55,4711.1,4710.5,3.506]
[1755114362497,0.55,4710.9,4710.5,3.506]
[1755114362698,14.6064,4710.6,4710.5,3.506]
[1755114363104,16.3282,4710.6,4710.5,3.506]
[1755114364194,0.55,4710.5,4710.4,5.087]
[1755114364519,1.7218,4710.5,4710.4,8.589]
[1755114364717,1.90462,4710.5,4710.4,8.589]
[1755114364903,16.40462,4710.5,4710.4,8.589]
[1755114365098,16.40462,4710.5,4710.4,5.087]
[1755114365301,16.40462,4710.5,4710.4,8.588]
[1755114365503,19.40462,4710.5,4710.4,8.586]
[1755114365704,19.40462,4710.5,4710.4,5.087]
[1755114365906,19.40462,4710.5,4710.4,8.586]
[1755114366104,19.40462,4710.5,4710.4,8.585]
[1755114367616,16.40462,4710.5,4710.4,8.585]
[1755114367936,16.2218,4710.5,4710.4,8.585]
[1755114371145,16.2218,4710.5,4710.4,5.087]
[1755114371345,16.2218,4710.5,4710.4,8.574]
[1755114371562,15.1564,4710.5,4710.4,8.574]
[1755114372188,15.1564,4710.5,4710.4,5.087]
[1755114372452,16.47047528,4710.5,4710.4,8.571]
[1755114372950,15.1564,4710.5,4710.4,8.571]
[1755114374346,14.6064,4710.5,4710.4,8.571]
[1755114378658,14.6064,4710.5,4710.4,5.087]
[1755114378859,14.6064,4710.5,4710.4,8.557]
[1755114379249,14.6064,4710.5,4710.4,5.087]
[1755114379449,14.6064,4710.5,4710.4,8.556]
[1755114379658,14.6064,4710.5,4710.4,8.554]
[1755114382762,0.1064,4710.5,4710.4,8.554]
[1755114383266,14.6064,4710.5,4710.4,8.554]
[1755114384139,14.5,4710.5,4710.4,12.4096]
[1755114389065,0.4618,4711.0,4710.5,3.0]
[1755114389236,0.4618,4711.0,4710.6,3.448]
[1755114389432,0.55,4711.7,4710.6,3.448]
[1755114389433,15.6718,4710.9,4710.6,3.448]
[1755114389637,1.1729,4710.8,4710.6,3.448]
[1755114389833,0.4363,4710.7,4710.6,3.448]
[1755114390065,0.4363,4710.7,4710.6,3.445]
[1755114390259,14.9363,4710.7,4710.6,3.445]
[1755114391242,14.5,4710.7,4710.6,3.445]
[1755114391567,14.5,4710.7,4710.6,3.98108247]
[1755114392166,14.5,4710.7,4710.6,3.97708247]
[1755114394556,1.1729,4711.1,4710.6,3.97708247]
[1755114394744,1.1729,4711.0,4710.6,3.97708247]
[1755114394941,0.7366,4711.0,4710.6,3.97708247]
[1755114395146,14.9363,4710.9,4710.6,3.97708247]
[1755114395443,0.002,4711.7,4710.7,3.8556]
[1755114395763,0.1064,4711.5,4710.9,3.0]
[1755114395969,0.1064,4711.5,4710.7,0.8556]
[1755114395970,0.4363,4711.5,4711.0,3.433]
[1755114396150,14.9363,4711.4,4711.1,3.437]
[1755114396344,1.1729,4711.3,4711.1,3.437]
[1755114396544,1.2793,4711.2,4711.1,3.437]
[1755114396750,1.2793,4711.2,4710.5,3.0]
[1755114396952,1.1729,4711.1,4710.6,3.437]
[1755114397248,1.1729,4711.0,4710.7,3.437]
[1755114397449,0.552,4711.7,4710.7,3.437]
[1755114397450,15.6729,4710.9,4710.7,3.437]
[1755114397674,1.2793,4710.8,4710.7,3.437]
[1755114398372,15.7793,4710.8,4710.7,3.437]
[1755114398943,14.6064,4710.8,4710.7,3.433]
[1755114400249,14.6064,4710.8,4710.7,4.2851]
[1755114400457,0.1064,4710.8,4710.7,7.2851]
[1755114400675,0.002,4711.7,4710.8,3.0]
[1755114400878,0.1064,4711.5,4711.0,3.0]
[1755114401081,0.1064,4711.5,4711.1,3.433]
[1755114401277,0.1064,4711.5,4711.1,3.97258247]
[1755114401978,14.5,4711.4,4711.1,3.97258247]
[1755114405351,14.5,4711.4,4711.1,3.433]
[1755114405554,1.1729,4711.3,4710.5,3.0]
[1755114405754,1.1729,4711.2,4710.4,5.087]
[1755114405984,0.1064,4710.8,4710.6,3.423]
[1755114406176,14.9363,4710.7,4710.6,3.423]
[1755114406488,15.6729,4710.7,4710.6,6.423]
[1755114406681,15.6729,4710.7,4710.6,3.423]
[1755114411077,15.6729,4710.7,4710.6,5.088]
[1755114412088,17.25083,4710.7,4710.6,5.088]
[1755114412465,17.25083,4710.7,4710.6,8.501]
[1755114412864,17.25083,4710.7,4710.6,8.5]
[1755114413471,17.80083,4710.7,4710.6,5.088]
[1755114413672,17.80083,4710.7,4710.6,8.498]
[1755114415193,17.80083,4710.7,4710.6,5.088]
[1755114415391,17.80083,4710.7,4710.6,8.498]
[1755114415694,17.80083,4710.7,4710.6,8.499]
[1755114416298,17.80083,4710.7,4710.6,5.089]
[1755114416473,17.80083,4710.7,4710.6,8.497]
[1755114416674,17.80083,4710.7,4710.6,5.089]
[1755114416867,17.80083,4710.7,4710.6,8.495]
[1755114418066,17.80083,4710.7,4710.6,5.089]
[1755114418271,20.80083,4710.7,4710.6,8.493]
[1755114418670,20.80083,4710.7,4710.6,5.089]
[1755114418894,20.80083,4710.7,4710.6,3.403]
[1755114420081,20.80083,4710.7,4710.1,5.089]
[1755114420082,0.55,4710.6,4710.1,5.089]
[1755114420276,0.55,4710.4,4710.2,3.402]
[1755114420481,1.1645,4710.3,4710.2,3.402]
[1755114420683,15.7709,4710.3,4710.2,3.402]
[1755114420973,15.1564,4710.3,4710.2,3.402]
[1755114421167,17.11474,4710.3,4710.2,3.402]
[1755114421468,17.83654,4710.3,4710.2,3.402]
[1755114421673,0.55,4710.2,4710.1,5.089]
[1755114421888,0.55,4710.2,4710.1,8.487]
[1755114422593,0.1064,4710.3,4710.1,8.487]
[1755114422973,15.05,4710.2,4710.1,5.089]
[1755114423175,15.05,4710.2,4710.1,8.487]
[1755114423374,15.05,4710.2,4710.1,8.485]
[1755114423784,14.6064,4710.2,4710.1,8.483]
[1755114424738,16.3209,4710.2,4710.1,8.483]
[1755114424882,17.61480043,4710.2,4710.1,8.483]
[1755114425073,17.61480043,4710.2,4710.1,5.089]
[1755114425273,17.61480043,4710.2,4710.1,8.482]
[1755114426203,17.61480043,4710.2,4710.1,5.089]
[1755114426405,17.61480043,4710.2,4710.1,8.48]
[1755114431277,17.61480043,4710.2,4710.1,5.089]
[1755114431477,17.61480043,4710.2,4710.1,8.481]
[1755114432307,17.61480043,4710.2,4710.1,8.48]
[1755114433892,16.45030043,4710.2,4710.1,8.48]
[1755114434204,14.6064,4710.2,4710.1,8.48]
[1755114437893,0.1064,4710.2,4710.1,8.48]
[1755114438408,14.6064,4710.2,4710.1,8.48]
[1755114440327,15.0491,4710.2,4710.1,8.48]
[1755114440484,14.6064,4710.2,4710.1,8.48]
[1755114445035,15.0491,4710.2,4710.1,8.48]
[1755114446234,14.6064,4710.2,4710.1,8.48]
[1755114448141,14.6064,4710.2,4710.1,5.089]
[1755114448346,15.7709,4710.2,4710.1,8.479]
[1755114453050,15.0491,4710.2,4710.1,5.089]
[1755114453229,14.6064,4710.2,4710.1,8.479]
[1755114453622,15.7748,4710.2,4710.1,8.479]
[1755114453812,17.90248,4710.2,4710.1,8.479]
[1755114460061,15.1564,4710.2,4710.1,8.479]
[1755114460222,16.3248,4710.2,4710.1,8.479]
[1755114464520,14.6064,4710.2,4710.1,8.479]
[1755114466544,0.1064,4710.2,4710.1,19.25643966]
[1755114466743,0.002,4710.6,4710.1,19.25643966]
[1755114466914,0.002,4710.6,4710.1,8.5854]
[1755114467114,0.002,4710.6,4710.1,5.089]
[1755114467115,0.1064,4710.2,4710.1,5.089]
[1755114467330,0.1064,4710.2,4710.1,8.477]
[1755114467532,15.0605,4710.2,4710.1,8.477]
[1755114467716,15.7748,4710.2,4710.1,8.477]
[1755114468357,14.6064,4710.2,4710.1,5.089]
[1755114468559,14.6064,4710.2,4710.1,8.477]
[1755114470562,15.7748,4710.2,4710.1,8.477]
[1755114471362,15.7748,4710.2,4710.1,8.476]
[1755114471656,14.6064,4710.2,4710.1,8.476]
[1755114472062,15.0605,4710.2,4710.1,8.476]
[1755114472262,15.7748,4710.2,4710.1,8.476]
[1755114473423,14.6064,4710.2,4710.1,8.476]
[1755114473642,0.1064,4710.2,4710.1,12.3236]
[1755114474268,14.5,4710.2,4710.1,12.3236]
[1755114474436,0.002,4710.6,4710.2,3.0]
[1755114474640,0.002,4710.6,4710.5,13.77743966]
[1755114474839,0.002,4710.6,4710.5,17.81492213]
[1755114475935,0.002,4710.6,4710.5,3.65048247]
[1755114476140,0.002,4710.6,4710.5,6.386]
[1755114477248,0.002,4710.6,4710.5,3.0]
[1755114477452,0.002,4710.6,4710.5,6.386]
[1755114479080,0.002,4710.6,4710.5,3.0]
[1755114479285,0.002,4710.6,4710.5,6.386]
[1755114480355,0.002,4710.6,4710.5,7.54414]
[1755114480547,0.002,4710.6,4710.5,4.26454]
[1755114480861,0.002,4710.6,4710.5,3.385]
[1755114481657,0.002,4710.6,4710.2,3.0]
[1755114481979,1.2526,4710.5,4710.3,3.385]
[1755114482175,1.1462,4710.4,4710.3,3.385]
[1755114482382,15.7526,4710.4,4710.3,3.385]
[1755114482679,16.56705819,4710.4,4710.3,3.385]
[1755114484078,15.7526,4710.4,4710.3,3.385]
[1755114484992,0.1064,4710.4,4710.3,6.385]
[1755114485149,0.002,4710.6,4710.4,3.0]
[1755114485477,0.002,4710.6,4710.5,6.384]
[1755114488373,0.002,4710.6,4710.5,3.0]
[1755114488680,0.002,4710.6,4710.5,6.384]
[1755114491070,0.002,4710.6,4710.5,6.468814]
[1755114494989,0.002,4711.1,4710.6,3.0]
[1755114495168,0.002,4711.1,4711.0,10.77743966]
[1755114495479,0.002,4711.1,4711.0,17.16043966]
[1755114495678,0.002,4711.1,4711.0,14.62651628]
[1755114495886,0.002,4711.1,4711.0,18.00851628]
[1755114496081,0.002,4711.6,4711.1,3.0]
[1755114496294,0.002,4711.6,4711.5,13.77743966]
[1755114496462,0.002,4711.6,4711.5,17.15943966]
[1755114497488,0.002,4711.6,4711.5,17.26583966]
[1755114497984,0.002,4711.7,4711.6,3.0]
[1755114498183,0.002,4712.7,4712.2,3.0]
[1755114498386,0.002,4713.2,4712.6,10.77743966]
[1755114498685,0.002,4713.2,4712.7,6.382]
[1755114498894,0.002,4713.2,4713.1,13.88383966]
[1755114499390,0.002,4713.2,4713.1,17.26583966]
[1755114499557,0.002,4713.2,4713.1,13.88383966]
[1755114499880,0.002,4713.2,4713.1,17.26583966]
[1755114501583,0.1264,4714.4,4713.2,23.195833]
[1755114501584,0.02,4714.4,4713.2,23.195833]
[1755114501801,0.02,4714.4,4714.3,13.77743966]
[1755114501959,0.02,4715.4,4714.4,3.0]
[1755114502156,0.02,4715.4,4715.3,3.0]
[1755114502362,0.02,4715.4,4715.3,6.4874]
[1755114502562,0.02,4715.4,4715.3,3.381]
[1755114502563,1.1662,4715.4,4715.3,3.381]
[1755114502771,15.7726,4715.4,4715.3,3.381]
[1755114503161,1.1662,4715.4,4715.3,3.381]
[1755114503560,15.6662,4715.4,4715.3,3.381]
[1755114503760,1.1662,4715.4,4715.3,3.381]
[1755114504267,0.02,4715.4,4715.3,3.72974]
[1755114504472,1.1662,4715.4,4715.3,6.72974]
[1755114504681,1.1662,4715.4,4715.3,6.4874]
[1755114504982,1.1662,4715.4,4715.3,3.381]
[1755114505292,1.2726,4715.4,4715.3,3.381]
[1755114506075,15.7726,4715.4,4715.3,3.381]
[1755114506398,15.6662,4715.4,4715.3,3.381]
[1755114507096,17.24346,4715.4,4715.3,3.381]
[1755114507262,17.34986,4715.4,4715.3,3.381]
[1755114508063,15.7726,4715.4,4715.3,3.381]
[1755114508269,14.52,4715.4,4715.3,3.381]
[1755114508463,15.6662,4715.4,4715.3,3.381]
[1755114508686,1.1662,4715.4,4715.3,3.381]
[1755114509064,15.6662,4715.4,4715.3,3.379]
[1755114509265,15.7726,4715.4,4715.3,3.379]
[1755114509463,17.34986,4715.4,4715.3,3.379]
[1755114509810,17.34986,4715.4,4714.5,5.086]
[1755114509967,16.09726,4715.4,4714.5,5.086]
[1755114510166,0.55,4715.2,4714.5,5.086]
[1755114510397,1.0951,4715.1,4714.5,5.086]
[1755114510594,0.55,4715.3,4714.5,5.086]
[1755114510768,0.1064,4714.6,4714.5,5.086]
[1755114510971,1.2015,4714.6,4714.5,8.465]
[1755114511392,1.7515,4714.6,4714.5,8.465]
[1755114511619,1.92665,4714.6,4714.5,8.465]
[1755114511987,16.42665,4714.6,4714.5,8.465]
[1755114515926,15.7015,4714.6,4714.5,8.465]
[1755114516330,16.2515,4714.6,4714.5,8.465]
[1755114517923,16.2515,4714.6,4713.0,0.1064]
[1755114518127,0.9786,4714.5,4713.7,5.084]
[1755114518314,0.55,4714.3,4713.7,5.084]
[1755114518519,0.1064,4713.8,4713.7,5.084]
[1755114518927,1.2015,4713.8,4713.7,5.084]
[1755114519126,1.2015,4713.8,4713.7,8.462]
[1755114519306,0.1064,4713.8,4713.7,8.462]
[1755114519728,1.7515,4713.8,4713.7,8.462]
[1755114519949,1.92665,4713.8,4713.7,8.462]
[1755114520314,1.7515,4713.8,4713.7,8.462]
[1755114521406,1.7515,4713.8,4712.3,3.0]
[1755114521604,1.6451,4713.7,4713.1,5.084]
[1755114521808,0.002,4714.8,4713.1,5.084]
[1755114521809,0.6665,4714.2,4713.2,3.378]
[1755114522109,0.1064,4713.5,4713.2,3.378]
[1755114522309,0.1064,4713.5,4713.2,4.23484]
[1755114523834,1.0951,4714.1,4713.2,4.23484]
[1755114524039,0.1064,4713.7,4713.2,3.378]
[1755114525630,0.1064,4713.9,4713.2,3.4844]
[1755114526206,0.002,4714.3,4713.3,3.02121655]
[1755114526430,0.1064,4714.2,4713.5,0.1064]
[1755114526644,0.1064,4714.2,4713.6,0.64844]
[1755114526942,0.1064,4714.2,4713.7,3.378]
[1755114527311,0.4286,4714.1,4713.7,3.378]
[1755114527539,1.0951,4714.0,4713.7,3.378]
[1755114527834,1.2015,4713.9,4713.2,3.1064]
[1755114528140,0.4286,4713.8,4713.3,3.378]
[1755114528313,0.1084,4713.9,4713.2,3.92544]
[1755114528514,1.0951,4713.7,4713.3,3.378]
[1755114528719,1.0951,4713.6,4713.3,3.378]
[1755114528935,0.1064,4713.4,4713.3,3.378]
[1755114529137,1.2015,4713.4,4713.3,3.378]
[1755114529918,0.1064,4713.4,4713.3,3.378]
[1755114530118,1.2015,4713.4,4713.3,3.378]
[1755114530625,0.1064,4713.4,4713.3,3.378]
[1755114532051,0.002,4713.9,4713.3,4.2242]
[1755114532257,0.1064,4713.7,4713.1,5.084]
[1755114532418,0.1064,4713.7,4713.2,3.377]
[1755114532845,1.0951,4713.6,4713.3,3.377]
[1755114533052,0.1064,4713.4,4713.3,3.377]
[1755114533417,0.002,4713.9,4713.3,3.377]
[1755114533741,0.002,4713.9,4713.4,1.1461]
[1755114534054,0.002,4713.9,4713.5,3.377]
[1755114534414,0.002,4713.9,4713.6,3.0]
[1755114534616,0.002,4713.9,4713.8,3.0]
[1755114535543,1.0971,4713.9,4713.8,3.0]
[1755114535750,1.0971,4713.9,4713.7,3.377]
[1755114535925,0.1064,4713.8,4713.7,3.377]
[1755114536443,1.2015,4713.8,4712.1,0.02]
[1755114536642,0.1064,4713.4,4713.2,3.377]
[1755114536951,1.0951,4713.3,4712.7,0.1084]
[1755114537155,1.0951,4713.3,4713.2,3.377]
[1755114539043,1.6451,4713.3,4713.2,3.377]
[1755114539262,1.82025,4713.3,4713.2,3.377]
[1755114540745,0.1064,4713.4,4713.2,3.377]
[1755114541837,0.002,4713.9,4713.3,3.1064]
[1755114542037,0.002,4713.9,4713.4,3.376]
[1755114542234,1.1077,4713.9,4712.7,0.1084]
[1755114542552,0.1064,4713.4,4713.2,3.376]
[1755114542750,0.565,4713.4,4713.2,3.376]
[1755114543465,1.1057,4713.3,4713.2,3.376]
[1755114544269,1.1057,4713.3,4712.7,0.1084]
[1755114544464,0.1064,4713.4,4713.2,3.376]
[1755114544968,0.1064,4713.4,4712.7,0.1084]
[1755114545264,1.6557,4713.3,4713.2,3.376]
[1755114545465,0.55,4713.2,4712.7,0.1084]
[1755114545676,1.6557,4713.2,4713.1,8.46]
[1755114549577,1.6557,4713.2,4713.1,8.461]
[1755114550271,1.6557,4713.2,4712.7,0.001]
[1755114550488,0.6564,4712.8,4712.7,0.001]
[1755114550640,1.7621,4712.8,4712.7,0.001]
[1755114551466,1.7621,4712.8,4712.7,3.377]
[1755114552971,0.55,4712.7,4712.6,5.085]
[1755114553172,1.8512931,4712.7,4712.6,8.461]
[1755114553466,1.8512931,4712.7,4712.2,0.001]
[1755114553666,0.6564,4712.3,4712.2,0.001]
[1755114554073,1.7621,4712.3,4712.2,0.001]
[1755114554457,1.91755696,4712.3,4712.2,3.377]
[1755114554645,2.12887197,4712.3,4712.2,3.377]
[1755114558879,0.1064,4712.3,4712.2,3.377]
[1755114563050,1.2121,4712.3,4712.2,3.377]
[1755114563278,1.7621,4712.3,4712.2,3.377]
[1755114563649,1.115,4712.3,4712.2,0.001]
[1755114563983,0.6564,4712.3,4712.2,3.376]
[1755114571585,0.1064,4712.3,4712.2,3.376]
[1755114573368,1.2425,4712.3,4712.2,3.376]
[1755114574092,1.97195,4712.3,4712.2,0.001]
[1755114574257,16.47195,4712.3,4712.2,0.001]
[1755114574458,16.47195,4712.3,4712.2,3.373]
[1755114575871,0.55,4712.2,4712.1,0.021]
[1755114576068,3.89265568,4712.2,4712.1,0.021]
[1755114576570,18.39265568,4712.2,4712.1,0.021]
[1755114576969,18.39265568,4712.2,4712.1,3.394]
[1755114582458,18.39265568,4712.2,4712.1,0.021]
[1755114582614,18.39265568,4712.2,4712.1,3.393]
[1755114583310,16.70655568,4712.2,4712.1,3.393]
[1755114583466,14.5,4712.2,4712.1,3.393]
[1755114583668,15.05,4712.2,4712.1,0.021]
[1755114583897,16.2925,4712.2,4712.1,3.393]
[1755114585194,16.2925,4712.2,4712.1,0.021]
[1755114585499,16.2925,4712.2,4712.1,3.393]
[1755114585875,16.2925,4712.2,4712.1,0.021]
[1755114586081,17.92175,4712.2,4712.1,3.392]
[1755114586296,17.92175,4712.2,4712.1,0.021]
[1755114586521,17.92175,4712.2,4712.1,3.392]
[1755114588018,17.92175,4712.2,4712.1,0.021]
[1755114588318,17.92175,4712.2,4712.1,3.392]
[1755114591610,17.92175,4712.2,4712.1,0.021]
[1755114591809,17.92175,4712.2,4712.1,3.391]
[1755114592322,17.92175,4712.2,4712.1,0.021]
[1755114592621,3.55,4712.1,4711.6,0.001]
[1755114592817,3.478275,4712.1,4711.6,0.001]
[1755114593017,0.55,4711.9,4711.6,0.001]
[1755114593217,18.05,4711.7,4711.6,0.001]
[1755114593424,20.2028275,4711.7,4711.6,0.001]
[1755114593591,21.3389275,4711.7,4711.6,0.001]
[1755114594006,21.3389275,4711.7,4711.6,3.371]
[1755114597299,21.3389275,4711.7,4711.2,0.001]
[1755114597510,0.55,4711.4,4711.3,3.369]
[1755114597827,2.31137147,4711.4,4711.3,3.369]
[1755114598030,17.94747147,4711.4,4711.3,3.369]
[1755114600254,14.5,4711.4,4711.3,3.369]
[1755114600551,7.02,4716.2,4711.3,3.369]
[1755114600552,0.6199,4713.3,4711.3,3.68245316]
[1755114600725,0.4526,4713.6,4712.0,10.7747872]
[1755114600934,14.502,4713.2,4712.1,3.368]
[1755114601128,14.502,4713.2,4712.4,10.7747872]
[1755114601303,14.502,4713.2,4712.5,6.368]
[1755114602045,14.502,4713.2,4712.5,3.0]
[1755114602246,14.502,4713.2,4712.6,3.368]
[1755114602543,0.1064,4713.1,4712.6,3.368]
[1755114604340,14.5,4713.0,4712.6,3.368]
[1755114605251,0.1064,4713.1,4712.6,3.368]
[1755114605418,0.002,4713.2,4712.6,3.368]
[1755114605419,0.002,4713.2,4712.6,6.3892197]
[1755114605619,0.002,4713.2,4712.6,6.4744]
[1755114608414,0.002,4713.2,4712.6,7.32318835]
[1755114608613,0.002,4713.2,4712.6,6.4744]
[1755114609135,0.002,4713.2,4712.6,3.94518835]
[1755114609312,0.002,4713.2,4712.6,3.96640805]
[1755114610414,0.002,4713.2,4712.6,7.33140805]
[1755114610620,0.002,4713.2,4712.6,7.0114]
[1755114610827,0.002,4713.7,4713.1,23.78569144]
[1755114611022,0.002,4713.7,4713.2,8.451]
[1755114611244,0.002,4713.7,4713.6,0.1064]
[1755114611417,0.002,4713.7,4713.6,6.4714]
[1755114612931,0.002,4713.7,4713.6,3.1064]
[1755114613131,0.002,4713.7,4713.6,7.2981167]
[1755114621652,0.002,4714.2,4713.8,0.84857227]
[1755114621832,0.002,4714.2,4713.8,46.37809201]
[1755114622034,0.002,4714.2,4713.8,46.35687771]
[1755114622234,0.002,4714.2,4713.8,46.32211348]
[1755114622532,0.002,4714.2,4713.8,39.41253248]
[1755114623647,0.002,4714.2,4713.8,49.82847948]
[1755114624464,0.002,4714.2,4713.8,57.31760748]
[1755114624662,0.002,4714.7,4714.2,0.84850027]
[1755114624978,1.0725,4715.9,4714.4,3.55]
[1755114625261,1.0725,4716.5,4715.1,0.84832751]
[1755114625470,1.0725,4716.5,4715.3,13.74674211]
[1755114625674,0.4526,4716.3,4715.3,14.31070788]
[1755114626076,0.6199,4716.2,4715.3,14.31070788]
[1755114627277,0.6199,4716.6,4715.4,3.0]
[1755114627437,0.4526,4716.8,4716.2,3.0]
[1755114627636,0.4526,4716.8,4716.1,10.74674211]
[1755114627637,0.6199,4717.0,4716.3,6.38120306]
[1755114627837,0.6199,4717.0,4716.3,7.29212718]
[1755114628146,14.52,4717.4,4716.3,8.14024964]
[1755114628463,0.4526,4716.9,4716.3,0.93312718]
[1755114628650,0.4526,4716.9,4716.8,3.0]
[1755114628848,1.0725,4716.9,4716.8,6.359]
[1755114629158,1.0725,4716.9,4716.8,3.0]
[1755114629348,1.0725,4716.9,4716.8,6.359]
[1755114629936,1.0725,4716.9,4716.8,3.0]
[1755114630142,1.0725,4716.9,4716.8,6.359]
[1755114631166,1.0725,4716.9,4716.8,6.9949]
[1755114631372,1.0725,4716.9,4716.8,6.359]
[1755114631579,1.0725,4716.9,4716.8,6.4654]
[1755114632884,0.02,4717.4,4716.9,3.0]
[1755114633180,1.0747,4716.9,4716.8,0.1064]
[1755114633377,1.0747,4716.9,4716.8,3.4634]
[1755114633378,0.6352,4716.9,4716.8,3.4634]
[1755114633745,0.6352,4716.9,4716.8,4.10974]
[1755114633982,1.0747,4716.9,4716.8,4.10974]
[1755114635379,1.0747,4716.9,4716.8,0.1064]
[1755114635682,1.0747,4716.9,4716.8,3.4634]
[1755114636450,1.0747,4716.9,4716.8,0.1064]
[1755114636646,1.0747,4716.9,4716.8,3.4624]
[1755114639256,1.0747,4716.9,4716.8,5.1874]
[1755114639457,0.55,4716.8,4713.9,0.84855218]
[1755114639685,1.0747,4716.7,4715.8,3.355]
[1755114639882,0.10747,4716.9,4715.9,3.355]
[1755114640160,14.5,4716.6,4715.9,3.355]
[1755114640590,1.0747,4716.5,4715.9,3.355]
[1755114640889,1.0747,4716.4,4715.9,3.355]
[1755114641057,1.0747,4716.3,4715.9,3.355]
[1755114641396,15.5747,4716.2,4715.9,3.355]
[1755114641564,15.5747,4716.2,4714.5,23.74236952]
[1755114641565,1.0747,4716.1,4716.0,5.081]
[1755114641887,1.0747,4716.1,4716.0,8.436]
[1755114642386,15.5747,4716.1,4716.0,8.436]
[1755114642979,0.6352,4716.1,4716.0,5.081]
[1755114643165,1.0747,4716.1,4716.0,8.436]
[1755114643664,1.0747,4716.1,4715.4,0.001]
[1755114643876,1.0747,4716.0,4715.5,8.435]
[1755114644083,15.5747,4715.9,4715.5,8.435]
[1755114644389,1.0747,4715.8,4715.5,8.435]
[1755114644560,14.5,4715.9,4715.5,8.435]
[1755114644761,1.0747,4715.7,4715.5,8.435]
[1755114645183,1.0747,4715.6,4715.5,8.435]
[1755114645590,1.0747,4715.6,4715.5,5.081]
[1755114645798,1.0747,4715.6,4715.4,0.001]
[1755114645799,0.55,4715.5,4715.4,0.001]
[1755114646095,0.55,4715.5,4715.4,5.082]
[1755114646096,1.0747,4715.5,4715.4,5.082]
[1755114647165,1.0747,4715.5,4715.4,8.436]
[1755114647993,1.6247,4715.5,4715.4,8.436]
[1755114648202,16.1247,4715.5,4715.4,8.436]
[1755114648493,17.73717,4715.5,4715.4,8.436]
[1755114649373,17.84357,4715.5,4715.4,5.082]
[1755114649766,17.84357,4715.5,4713.9,0.001]
[1755114649767,3.55,4715.4,4715.2,5.082]
[1755114649967,1.6247,4715.3,4715.2,5.082]
[1755114650169,1.7311,4715.3,4715.2,5.082]
[1755114650465,2.065457,4715.3,4715.2,5.082]
[1755114650970,2.065457,4715.3,4715.2,8.436]
[1755114652000,2.065457,4715.3,4713.9,0.001]